Cogmind - Beta 12 @@@ ROGUE MODE // 2023.07.30 @ 04:33:58 Player: ktur Result: Destroyed by G-47 Trooper with Particle Gun Performance ------------- Evolutions (2) 1000 Regions Visited (9) 1800 Robots Destroyed (97) 485 Value Destroyed (3814) 3814 Prototype IDs (7) 140 Alien Tech Used (0) 0 Bonus (763) 763 TOTAL SCORE: 8002 Bonus ------- High Alert Combat Kills 533 Follower Combat Kills 58 Entered Garrisons 200 Friendly Fire -28 Cogmind --------- Core Integrity 0/550 Matter 232/300 Energy 272/280 System Corruption 1% Temperature Cool (13) Movement Walking (120) Location -8/Materials Parts ------- > --- POWER (1) -------- Heavy Ion Engine > --- PROPULSION (4) --- Carbon-fiber Leg Carbon-fiber Leg Improved Carbon-fiber Leg Improved Carbon-fiber Leg > --- UTILITY (4) ------ Large Storage Unit Hacking Suite Hacking Suite > --- WEAPON (2) ------- Katana > --- INVENTORY (15) --- Light Nuclear Core Huge Storage Unit High-capacity Matter Pod (0) Melee Analysis Suite ECM Suite Light Armor Plating Light Armor Plating Improved Trap Extractor (0/6) Heavy Assault Rifle Improved Grenade Launcher Improved Grenade Launcher Flail Katana Katana Peak State ------------ > --- POWER ------------ Heavy Ion Engine > --- PROPULSION ------- Carbon-fiber Leg Carbon-fiber Leg Carbon-fiber Leg Carbon-fiber Leg > --- UTILITY ---------- Huge Storage Unit Improved Signal Interpreter Hacking Suite Hacking Suite > --- WEAPON ----------- Autogun Gauss Rifle > --- INVENTORY -------- Light Nuclear Core Light Treads Light Treads Carbon-fiber Leg Improved Carbon-fiber Leg Improved Carbon-fiber Leg Improved Carbon-fiber Leg Large Storage Unit High-capacity Matter Pod Seismic Detector Melee Analysis Suite ECM Suite Light Armor Plating Light Armor Plating Improved Trap Extractor EM Pulse Cannon Heavy Assault Rifle Improved Grenade Launcher Improved Grenade Launcher Improved Grenade Launcher Flail Katana Katana Katana [Rating: 36] Favorites ----------- Power Heavy Ion Engine Engine Heavy Ion Engine Propulsion Light Treads Treads Light Treads Leg Carbon-fiber Leg Utility Hardened Light Armor Plating Device Hardlight Generator Storage Huge Storage Unit Processor Core Analyzer Hackware Hacking Suite Protection Hardened Light Armor Plating Weapon Autogun Energy Gun Medium Laser Energy Cannon Particle Cannon Ballistic Gun Autogun Launcher Improved Grenade Launcher Slashing Weapon Katana Build | -11 -10 -10 -9 -9 -9 -8 -8 -8 -8 ------- Run | Jun Mat Min Mat Min Exi Min Mat Gar Mat Slots Evolved 4 | . . . 2 . . . 2 . . Power . | . . . . . . . . . . Propulsion 2 | . . . 1 . . . 1 . . Utility 2 | . . . 1 . . . 1 . . Weapon . | . . . . . . . . . . Parts Attached 101 | 6 17 4 8 4 . . 10 31 21 Power 3 | 1 . . 1 . . . . 1 . Engine 3 | 1 . . 1 . . . . 1 . Core . | . . . . . . . . . . Reactor . | . . . . . . . . . . Propulsion 32 | 2 3 2 2 . . . 4 14 5 Treads 20 | 2 3 2 2 . . . 4 7 . Leg 12 | . . . . . . . . 7 5 Wheel . | . . . . . . . . . . Hover . | . . . . . . . . . . Flight . | . . . . . . . . . . Utility 27 | 1 3 2 3 1 . . 3 5 9 Device 9 | . 1 1 2 . . . 2 1 2 Storage 5 | 1 2 1 . . . . . . 1 Processor 2 | . . . . . . . . 1 1 Hackware 2 | . . . . . . . . . 2 Protection 9 | . . . 1 1 . . 1 3 3 Artifact . | . . . . . . . . . . Weapon 39 | 2 11 . 2 3 . . 3 11 7 Energy Gun 2 | 1 1 . . . . . . . . Energy Cannon 6 | . 6 . . . . . . . . Ballistic Gun 21 | 1 4 . 2 2 . . 3 7 2 Ballistic Cannon . | . . . . . . . . . . Launcher 8 | . . . . 1 . . . 4 3 Special Weapon . | . . . . . . . . . . Impact Weapon . | . . . . . . . . . . Slashing Weapon 2 | . . . . . . . . . 2 Piercing Weapon . | . . . . . . . . . . Special Melee Weapon . | . . . . . . . . . . Unidentified Prototypes 1 | . . . 1 . . . . . . Parts Lost 24 | . . . 1 . . . 1 18 4 Power 2 | . . . 1 . . . . 1 . Propulsion 12 | . . . . . . . . 9 3 Utility 6 | . . . . . . . . 5 1 Weapon 4 | . . . . . . . 1 3 . Highest Loss Streak 4 | . . . 1 . . . 1 4 3 To Critical Strikes . | . . . . . . . . . . Average Slot Usage (%) 94 | . 93 100 99 99 100 100 97 86 95 Engine 10 | . 14 14 10 11 11 11 9 7 9 Treads 24 | . 27 28 33 33 33 33 36 21 . Leg 7 | . . . . . . . . 10 35 Device 7 | . 8 14 10 11 11 11 8 3 4 Storage 10 | . 14 14 11 11 11 11 9 9 9 Processor 1 | . . . . . . . . 4 4 Protection 8 | . . . 11 10 11 11 15 11 6 Energy Cannon 7 | . 18 28 4 . . . . . . Ballistic Gun 12 | . 3 . 16 21 22 22 17 17 12 Naked Turns . | . . . . . . . . . . Heaviest Build 109 | 14 35 95 104 107 104 104 109 109 102 Greatest Support 80 | 40 40 40 60 60 60 60 80 80 66 Greatest Overweight (x) 2 | . 1 2 1 1 1 1 1 2 1 Average Overweight (x) . | . . . 1 1 1 1 1 1 . Largest Inventory Capacity 25 | 8 15 25 25 25 25 25 25 25 25 Average Capacity 21 | 6 14 15 25 25 25 25 25 25 23 Most Carried 25 | 6 15 16 25 25 25 25 25 25 25 Average Carried 21 | 3 12 15 24 24 25 25 24 24 21 Final Capacity 25 | 8 15 25 25 25 25 25 25 25 15 Final Carried 25 | 6 15 16 25 25 25 25 25 24 14 Class Distribution -------------------- 61% | Mutant 38% | Scavenger-Mutant Dominant Class ---------------- Mutant | -10/Materials Mutant | -10/Mines Mutant | -9/Materials Mutant | -9/Mines Mutant | -9/Exiles Mutant | -8/Mines Scavenger-Mutant | -8/Materials Scavenger-Mutant | -8/Garrison Scavenger-Mutant | -8/Materials Resources | -11 -10 -10 -9 -9 -9 -8 -8 -8 -8 ----------- Run | Jun Mat Min Mat Min Exi Min Mat Gar Mat Matter Collected 3063 | 191 272 40 514 83 . . 432 1111 420 Remotely . | . . . . . . . . . . Salvage Created 3274 | . 435 73 510 89 . . 460 1362 345 Parts 197 | . 21 7 36 9 . . 23 75 26 Haulers Intercepted 3 | . 1 . . . . . 1 . 1 Recyclers Shooed 4 | . . . 2 . . . 1 . 1 Parts Field Recycled . | . . . . . . . . . . Retrieved Matter . | . . . . . . . . . . Parts Self-Destructed . | . . . . . . . . . . Prevented . | . . . . . . . . . . Kills | -11 -10 -10 -9 -9 -9 -8 -8 -8 -8 ------- Run | Jun Mat Min Mat Min Exi Min Mat Gar Mat Combat Hostiles Destroyed 79 | . 7 3 8 6 . . 6 32 17 Guns 47 | . 3 . 8 3 . . 6 23 4 Cannons 6 | . 3 3 . . . . . . . AOE 25 | . . . . 3 . . . 9 13 Classes Destroyed 15 | . 5 1 3 2 . . 2 2 . Worker 1 | . . . . . . . 1 . . Builder 1 | . . . 1 . . . . . . Tunneler 3 | . . 1 . . . . 2 . . Hauler 3 | . 1 . . . . . 1 . 1 Recycler 5 | . 2 . 3 . . . . . . Operator 2 | . 1 . 1 . . . . . . Watcher 3 | . . . 2 . . . 1 . . Swarmer 24 | . 3 3 4 3 . . . 3 8 Grunt 34 | . 4 . 3 1 . . 1 18 7 Duelist 3 | . . . . 1 . . . 2 . Sentry 11 | . . . 1 . . . 4 4 2 Demolisher 1 | . . . . 1 . . . . . Specialist 3 | . . . . . . . . 3 . Hunter 2 | . . . . . . . 1 1 . Programmer 1 | . . . . . . . . 1 . Best Kill Streak 6 | . 4 3 4 3 . . 4 5 6 Combat Bots Only 6 | . 3 3 3 3 . . 4 5 6 Max Kills in Single Turn 3 | . 2 1 2 2 . . 1 2 3 Gunslinging 1 | . 1 . . . . . . 1 . Exploded 3 | . . . . 2 . . . 2 3 Melee . | . . . . . . . . . . Uniques/NPCs Destroyed . | . . . . . . . . . . Combat | -11 -10 -10 -9 -9 -9 -8 -8 -8 -8 -------- Run | Jun Mat Min Mat Min Exi Min Mat Gar Mat Damage Taken 4716 | . 211 42 215 277 . . 439 2871 661 Core 685 | . 39 16 28 51 . . 22 362 167 Absorbed by Shields 1260 | . . . 96 36 . . 152 976 . Regen/Repaired (Parts) 86 | . . . . . . . 86 . . Core Remaining (%) 86 | 100 . 78 . . . 80 . . . Volleys Fired 252 | . 28 8 28 10 . . 40 109 29 Largest 2 | . 2 2 2 2 . . 2 2 2 Hottest 136 | . 136 136 46 46 . . 46 51 51 Shots Fired 457 | . 41 16 56 18 . . 79 207 40 Gun 383 | . 8 . 56 16 . . 79 200 24 Cannon 49 | . 33 16 . . . . . . . Launcher 25 | . . . . 2 . . . 7 16 Special . | . . . . . . . . . . Kinetic 383 | . 8 . 56 16 . . 79 200 24 Thermal 49 | . 33 16 . . . . . . . Explosive 25 | . . . . 2 . . . 7 16 Electromagnetic . | . . . . . . . . . . Robot Hit Streak 21 | . 10 7 8 10 . . 12 15 21 Robot Miss Streak 4 | . 2 2 2 1 . . 1 4 1 Penetration Max 1 | . . . . . . . . 1 . Secondary Targets 9 | . 1 . 2 . . . . 6 . Max Gunslinging Chain 1 | . 1 . 1 . . . . 1 . Shots Hit Robots 308 | . 24 10 33 14 . . 62 139 26 Core Hits 163 | . 12 4 19 8 . . 18 72 30 Critical Kills 4 | . 2 . 1 . . . . 1 . Critical Parts Destroyed 3 | . . . . . . . 1 1 1 Critical Strikes 7 | . 2 . 1 . . . 1 2 1 Meltdown 2 | . 2 . . . . . . . . Destroy 5 | . . . 1 . . . 1 2 1 Melee Attacks 5 | . . . . . . . . . 5 Impact . | . . . . . . . . . . Slashing 5 | . . . . . . . . . 5 Piercing . | . . . . . . . . . . Sneak Attacks . | . . . . . . . . . . Combat Hostiles . | . . . . . . . . . . Follow-up Attacks 1 | . . . . . . . . . 1 Damage Inflicted 7725 | . 474 272 580 400 . . 982 3331 1686 Guns 4200 | . 81 . 559 181 . . 953 2135 291 Cannons 575 | . 376 199 . . . . . . . Explosions 2749 | . . . . 219 . . . 1186 1344 Melee 34 | . . . . . . . . . 34 Ramming 167 | . 17 73 21 . . . 29 10 17 Kinetic 4200 | . 81 . 559 181 . . 953 2135 291 Thermal 575 | . 376 199 . . . . . . . Explosive 2749 | . . . . 219 . . . 1186 1344 Electromagnetic . | . . . . . . . . . . Impact . | . . . . . . . . . . Slashing 34 | . . . . . . . . . 34 Piercing . | . . . . . . . . . . Highest Corruption 1 | . 1 1 . . . . . 1 1 Average Corruption 1 | . 1 1 . . . . . 1 1 Corruption Purged . | . . . . . . . . . . Corruption Blocked . | . . . . . . . . . . Effects 24 | . 2 9 . . . . . 10 3 Message Errors 11 | . . 5 . . . . . 3 3 Matter Fused 4 | . 1 . . . . . . 3 . Heat Flow Errors 4 | . . 1 . . . . . 3 . Energy Discharges 3 | . 1 2 . . . . . . . Data Loss (minor) 2 | . . 1 . . . . . 1 . Overload Shots . | . . . . . . . . . . Overflow Damage 118 | . 12 17 . . . . 7 34 48 Projectiles 29 | . 12 17 . . . . . . . Explosions 82 | . . . . . . . . 34 48 Melee 7 | . . . . . . . 7 . . Knockbacks 1 | . . 1 . . . . . . . Impact 1 | . . 1 . . . . . . . Kinetic . | . . . . . . . . . . Secondary . | . . . . . . . . . . Self-Inflicted Damage 596 | . . . . 94 . . . 287 215 Shots 14 | . . . . 2 . . . 7 5 Rammed 20 | . 5 10 2 . . . 1 2 . Targets Rammed 22 | . 5 10 2 . . . 1 2 2 Kicked 2 | . . . . . . . . . 2 Crushed . | . . . . . . . . . . Highest Temperature 319 | . 100 74 44 42 . . 149 319 25 Average Temperature 51 | . 31 24 15 15 . . 47 73 11 Received Heat Transfer 1388 | . 66 . 89 11 . . 119 905 198 Effects 1 | . . . . . . . . 1 . Interference 1 | . . . . . . . . 1 . Siege Activations . | . . . . . . . . . . Robots Corrupted . | . . . . . . . . . . Combat Hostiles . | . . . . . . . . . . Parts Fried 1 | . . . . . . . 1 . . Impact Corruptions 1 | . . . . . . . 1 . . Robots Melted 2 | . 2 . . . . . . . . Combat Hostiles 1 | . 1 . . . . . . . . Parts Melted 3 | . 1 2 . . . . . . . Heat Transferred 1036 | . 703 333 . . . . . . . Parts Sabotaged . | . . . . . . . . . . Parts Stolen . | . . . . . . . . . . Parts Stripped . | . . . . . . . . . . Power Chain Reactions . | . . . . . . . . . . Missiles Intercepted . | . . . . . . . . . . Alert | -11 -10 -10 -9 -9 -9 -8 -8 -8 -8 ------- Run | Jun Mat Min Mat Min Exi Min Mat Gar Mat Peak Influence 1186 | . 243 106 180 216 . . 170 1186 937 Initial 577 | . . 36 . 31 . . . 28 577 Average 299 | . 95 34 58 182 . . 58 563 754 Maximum Alert Level 4 | . 1 . . 1 . . . 4 3 Low Security (%) 56 | 100 88 100 100 29 . 100 100 8 . Level 1 10 | . 11 . . 70 . . . 24 . Level 2 16 | . . . . . . . . 37 39 Level 3 14 | . . . . . . . . 24 60 Level 4 1 | . . . . . . . . 4 . Level 5 . | . . . . . . . . . . High Security . | . . . . . . . . . . Max Security . | . . . . . . . . . . Squads Dispatched 11 | . 3 . 3 . . . . . 5 Investigation 6 | . 2 . 1 . . . . . 3 Extermination . | . . . . . . . . . . Reinforcement 4 | . 1 . 2 . . . . . 1 Assault 1 | . . . . . . . . . 1 Garrison . | . . . . . . . . . . Intercept . | . . . . . . . . . . Searches Triggered . | . . . . . . . . . . Construction Impeded 1 | . . . . . . . . . 1 Haulers Reinforced . | . . . . . . . . . . Active Scanning Responses . | . . . . . . . . . . Cargo Convoy Interrupts . | . . . . . . . . . . Stealth | -11 -10 -10 -9 -9 -9 -8 -8 -8 -8 --------- Run | Jun Mat Min Mat Min Exi Min Mat Gar Mat Distress Signals 6 | . 1 . 2 . . . 1 . 2 Communications Jammed . | . . . . . . . . . . Distress Signals . | . . . . . . . . . . Times Spotted 126 | . 20 3 23 10 . . 13 34 23 Peak Tracking Total 6 | . 4 3 6 3 . . 5 5 5 Tactical Retreats 2 | . . . . 1 . . . 1 . Traps | -11 -10 -10 -9 -9 -9 -8 -8 -8 -8 ------- Run | Jun Mat Min Mat Min Exi Min Mat Gar Mat Traps Triggered 9 | . 3 . . . . . . 5 1 Indirectly . | . . . . . . . . . . Trap Hack Attempts . | . . . . . . . . . . Triggered . | . . . . . . . . . . Disarmed . | . . . . . . . . . . Reprogrammed . | . . . . . . . . . . Reused . | . . . . . . . . . . Traps Extracted . | . . . . . . . . . . Installed . | . . . . . . . . . . Triggered . | . . . . . . . . . . Machines | -11 -10 -10 -9 -9 -9 -8 -8 -8 -8 ---------- Run | Jun Mat Min Mat Min Exi Min Mat Gar Mat Machines Disabled 13 | . . 1 . . . . . 6 6 Max in Single Turn 3 | . . 1 . . . . . 2 3 Garrison Access 1 | . . . . . . . . . 1 Garrison Relay 3 | . . . . . . . . 3 . Phase Generator 1 | . . . . . . . . 1 . Machines Repaired . | . . . . . . . . . . Machines Sabotaged . | . . . . . . . . . . Overloaded Fab Kills . | . . . . . . . . . . Hacking | -11 -10 -10 -9 -9 -9 -8 -8 -8 -8 --------- Run | Jun Mat Min Mat Min Exi Min Mat Gar Mat Machines Accessed 20 | . 5 1 2 . 1 . 5 2 4 Terminals 12 | . 3 . 2 . . . 2 2 3 Fabricators . | . . . . . . . . . . Repair Stations 1 | . . . . . . . 1 . . Recycling Units 2 | . 2 . . . . . . . . Scanalyzers 1 | . . . . . . . 1 . . Garrison Access 2 | . . . . . . . 1 . 1 Total Hacks 47 | . 11 1 6 . 1 . 13 2 13 Successful 26 | . 8 1 2 . 1 . 9 1 4 Failed 21 | . 3 . 4 . . . 4 1 9 Catastrophic 3 | . 1 . . . . . . 1 1 Database Lockouts . | . . . . . . . . . . Manual 17 | . 6 . . . . . 6 . 5 Terminals 32 | . 8 . 6 . . . 7 2 9 Fabricators . | . . . . . . . . . . Repair Stations 3 | . . . . . . . 3 . . Recycling Units 3 | . 3 . . . . . . . . Scanalyzers 2 | . . . . . . . 2 . . Garrison Access 5 | . . . . . . . 1 . 4 Terminal Hacks 14 | . 4 1 2 . 1 . 2 1 3 Record 1 | . . . . . 1 . . . . Part Schematic 1 | . . . . . . . 1 . . Robot Analysis 2 | . 2 . . . . . . . . Prototype ID Bank 3 | . 2 . 1 . . . . . . Open Door 1 | . . 1 . . . . . . . Emergency Access Points 1 | . . . . . . . . 1 . Alert Level 1 | . . . . . . . . . 1 Unreport Threat 1 | . . . . . . . . . 1 Locate Traps 1 | . . . 1 . . . . . . Recall Assault 1 | . . . . . . . . . 1 Zone Layout 1 | . . . . . . . 1 . . Fabricator Hacks . | . . . . . . . . . . Repair Station Hacks 3 | . . . . . . . 3 . . Scan Component 2 | . . . . . . . 2 . . Repair 1 | . . . . . . . 1 . . Recycling Unit Hacks 1 | . 1 . . . . . . . . Retrieve Components 1 | . 1 . . . . . . . . Scanalyzer 2 | . . . . . . . 2 . . Insert Component 1 | . . . . . . . 1 . . Analyze 1 | . . . . . . . 1 . . Garrison Access Hacks 2 | . . . . . . . 1 . 1 Unlock Access 1 | . . . . . . . 1 . . Seal Access 1 | . . . . . . . . . 1 Unauthorized Hacks 4 | . 3 . . . . . 1 . . Terminals 2 | . 1 . . . . . 1 . . Botnet 1 | . . . . . . . 1 . . Operators 1 | . 1 . . . . . . . . Fabricators . | . . . . . . . . . . Repair Stations . | . . . . . . . . . . Recycling Units 2 | . 2 . . . . . . . . Tunnel 2 | . 2 . . . . . . . . Scanalyzers . | . . . . . . . . . . Garrison Access . | . . . . . . . . . . Data Cores Recovered . | . . . . . . . . . . Used . | . . . . . . . . . . Hacking Detections 15 | . 3 . 2 . . . 5 1 4 Full Trace Events 3 | . . . 1 . . . . . 2 Feedback Events . | . . . . . . . . . . Feedback Blocked . | . . . . . . . . . . Robot Schematics Acquired . | . . . . . . . . . . Robots Built . | . . . . . . . . . . Authchips . | . . . . . . . . . . Time . | . . . . . . . . . . Total Robot Build Rating . | . . . . . . . . . . Part Schematics Acquired 2 | . . . . . . . 2 . . Parts Built . | . . . . . . . . . . Authchips . | . . . . . . . . . . Time . | . . . . . . . . . . Total Part Build Rating . | . . . . . . . . . . Parts Repaired 1 | . . . . . . . 1 . . Time 32 | . . . . . . . 32 . . Parts Recycled . | . . . . . . . . . . Recycled Matter . | . . . . . . . . . . Retrieved Matter . | . . . . . . . . . . Retrieved Components 4 | . 4 . . . . . . . . Parts Scanalyzed 1 | . . . . . . . 1 . . Part Schematics Acquired 1 | . . . . . . . 1 . . Parts Damaged . | . . . . . . . . . . Bothacking | -11 -10 -10 -9 -9 -9 -8 -8 -8 -8 ------------ Run | Jun Mat Min Mat Min Exi Min Mat Gar Mat Used RIF Installer . | . . . . . . . . . . Robots Hacked . | . . . . . . . . . . Non-combat . | . . . . . . . . . . Combat . | . . . . . . . . . . Robot Hacks Applied . | . . . . . . . . . . Relay Couplers Released 16 | . . . . . . . . 16 . Machine Destruction 13 | . . . . . . . . 13 . Programmers 3 | . . . . . . . . 3 . Fabnet Peak Effective % . | . . . . . . . . . . Robots Rewired . | . . . . . . . . . . Allies Hacked . | . . . . . . . . . . Hacks Repelled . | . . . . . . . . . . Allies | -11 -10 -10 -9 -9 -9 -8 -8 -8 -8 -------- Run | Jun Mat Min Mat Min Exi Min Mat Gar Mat Total Allies 3 | . . 3 . . . . . . . Largest Group 3 | . . 3 3 . . . . . . Highest-Rated Group 40 | . . 40 40 . . . . . . Highest-Rated Ally 16 | . . 16 16 . . . . . . Total Orders . | . . . . . . . . . . Ally Attacks 22 | . . . 22 . . . . . . Total Damage 247 | . . . 247 . . . . . . Kills 3 | . . . 3 . . . . . . Allies Corrupted . | . . . . . . . . . . Allies Melted . | . . . . . . . . . . Intel | -11 -10 -10 -9 -9 -9 -8 -8 -8 -8 ------- Run | Jun Mat Min Mat Min Exi Min Mat Gar Mat Robot Analysis Total 2 | . 2 . . . . . . . . Derelict Logs Recovered 3 | . . 3 . . . . . . . Drone Launches . | . . . . . . . . . . Drone Recoveries . | . . . . . . . . . . Exploration | -11 -10 -10 -9 -9 -9 -8 -8 -8 -8 ------------- Run | Jun Mat Min Mat Min Exi Min Mat Gar Mat Turns Passed 7227 | 77 823 1224 510 165 329 94 1028 2202 775 Spaces Moved 2977 | 41 416 636 165 55 138 40 336 775 375 Core 3 | 3 . . . . . . . . . Treads 2365 | 38 416 636 165 55 138 40 336 541 . Legs 609 | . . . . . . . . 234 375 Wheels . | . . . . . . . . . . Hover . | . . . . . . . . . . Flight . | . . . . . . . . . . Fastest Speed 50 | 50 160 160 240 240 240 240 240 190 120 Average Speed 201 | 151 160 162 240 240 240 240 240 234 172 Slowest Speed 320 | 160 240 320 240 240 240 240 240 320 190 Overloaded Moves . | . . . . . . . . . . Propulsion Burnouts . | . . . . . . . . . . Robots Hopped . | . . . . . . . . . . Cave-ins Triggered . | . . . . . . . . . . Exploration Rate (%) 41 | 4 56 97 21 19 52 16 23 86 41 Regions Visited 9 Branch Regions 4 Pre-discovered Areas 4 | . 2 . . 1 1 . . . . Known Exits Taken 3 | . . 1 . . . 1 1 . . Unknown Exits Taken 5 | 1 1 . 1 1 1 . . . . Scrap Searched 1 | . . 1 . . . . . . . Spaces Dug 13 | . . . . . . . . . 13 Terrain Destroyed 347 | . . . . 21 . . . 134 192 Melee 2 | . . . . . . . . . 2 Projectile 1 | . . . . . . . . 1 . AOE 344 | . . . . 21 . . . 133 190 Terrain Rammed . | . . . . . . . . . . Walls Destroyed . | . . . . . . . . . . Machines Disabled . | . . . . . . . . . . Actions | -11 -10 -10 -9 -9 -9 -8 -8 -8 -8 --------- Run | Jun Mat Min Mat Min Exi Min Mat Gar Mat Total 3807 | 53 527 810 236 73 137 39 494 979 459 Wait 301 | . 29 143 2 3 . . 88 22 14 Move 2969 | 40 416 635 165 54 137 39 336 772 375 Hop . | . . . . . . . . . . Pick Up 77 | 7 19 5 20 1 . . 9 14 2 Fast Attach 27 | 5 8 . 2 1 . . 1 7 3 Attach 36 | 1 1 3 5 1 . . 5 11 9 Detach 4 | . . . . . . . . 1 3 Swap 39 | . 8 1 2 2 . . 4 13 9 Drop 59 | . 14 5 11 1 . . 10 9 9 Fire 252 | . 28 8 28 10 . . 40 109 29 Melee 4 | . . . . . . . . . 4 Ram . | . . . . . . . . . . Kick 2 | . . . . . . . . . 2 Crush 18 | . 4 10 1 . . . 1 2 . Escape Stasis 8 | . . . . . . . . 8 . Rewire 11 | . . . . . . . . 11 . Trap . | . . . . . . . . . . Miscellaneous . | . . . . . . . . . . Route ------- -11/Junkyard -10/Materials (discovered 2 exits: *Mat / *Min) -10/Mines (discovered 2 exits: *Mat x2) -9/Materials (discovered 2 exits: Mat / [*Min]) -9/Mines -9/Exiles -8/Mines -8/Materials (discovered 3 exits: [*Fac] / *Sto / Gar) -8/Garrison (discovered 3 exits: *Mat x3) -8/Materials (discovered 2 exits: *Sto x2) History --------- Turn | Location | Event 8 | -11/Junkyard | Discovered new exit (range 15) 78 | -11/Junkyard | Entered Materials 184 | -10/Materials | Discovered new exit (range 16) 271 | -10/Materials | Discovered new exit (range 16) 314 | -10/Materials | Build established: Mutant 901 | -10/Materials | Entered Mines 922 | -10/Mines | Met a Derelict bent on vengeance 985 | -10/Mines | Learned location of 1 exit from Materials 990 | -10/Mines | Discovered new exit (range 3) 1103 | -10/Mines | Met a Derelict who couldn't figure out how to use a Trap Extractor 1429 | -10/Mines | Identified exit to Materials 1460 | -10/Mines | Assisted by bots powering up and referring to "LRC-V3" 2125 | -10/Mines | Entered Materials 2125 | -9/Materials | Accompanied by 3 allies 2125 | -9/Materials | Evolved 2 slots: Propulsion x1, Utility x1 2126 | -9/Materials | Identified exit to Materials 2543 | -9/Materials | Discovered new exit (range 12) 2635 | -9/Materials | Entered Mines 2636 | -9/Mines | Assembled infested the area 2719 | -9/Mines | Learned location of Storage (-8) 2790 | -9/Mines | Deemed a non-threat by the Exiles lab entrance 2790 | -9/Mines | Discovered new exit (range 5) 2800 | -9/Mines | Entered Exiles 2856 | -9/Exiles | Met 8R-AWN 2899 | -9/Exiles | Met EX-HEX 2976 | -9/Exiles | Met EX-BIN 3012 | -9/Exiles | Met EX-DEC 3021 | -9/Exiles | Learned location of Zion (-7) 3110 | -9/Exiles | Discovered new exit (range 10) 3129 | -9/Exiles | Entered Mines 3206 | -8/Mines | Discovered exit to Materials (range 4) 3223 | -8/Mines | Entered Materials 3223 | -8/Materials | Evolved 2 slots: Propulsion x1, Utility x1 3253 | -8/Materials | Discovered new exit (range 14) 3430 | -8/Materials | Repaired Autogun 3446 | -8/Materials | Discovered new exit (range 8) 3909 | -8/Materials | Build established: Scavenger-Mutant 4251 | -8/Materials | Identified exit to Garrison 4251 | -8/Materials | Entered Garrison 4376 | -8/Garrison | Triggered checkpoint 4504 | -8/Garrison | Lost 4 parts (2n1u1w) 4600 | -8/Garrison | Triggered checkpoint 4640 | -8/Garrison | Spotted B-75 Beast 4770 | -8/Garrison | Triggered checkpoint 4862 | -8/Garrison | Triggered checkpoint 4943 | -8/Garrison | Discovered new exit (range 14) 4994 | -8/Garrison | Phase Generator disabled 5054 | -8/Garrison | Garrison Relay disabled 5192 | -8/Garrison | Spotted B-75 Beast 5355 | -8/Garrison | Discovered new exit (range 10) 5616 | -8/Garrison | Triggered checkpoint 5797 | -8/Garrison | Triggered checkpoint 5800 | -8/Garrison | Core integrity fell below 50% 5819 | -8/Garrison | Garrison Relay disabled 5828 | -8/Garrison | Lost 4 parts (1p2n1w) 5889 | -8/Garrison | Triggered checkpoint 5918 | -8/Garrison | Build established: Mutant 5945 | -8/Garrison | Discovered new exit (range 13) 5979 | -8/Garrison | Attempted to access garrison exit controls, blocked by remote lockdown 6250 | -8/Garrison | Triggered checkpoint 6453 | -8/Garrison | Entered Materials 6619 | -8/Materials | Core integrity fell below 20% 6765 | -8/Materials | Discovered new exit (range 2) 6767 | -8/Materials | Identified exit to Storage 6803 | -8/Materials | Build established: Scavenger-Mutant 6853 | -8/Materials | First assault squad dispatched 7209 | -8/Materials | Lost 3 parts (2n1u) 7216 | -8/Materials | Discovered exit to Storage (range 5) 7228 | -8/Materials | Destroyed by G-47 Trooper with Particle Gun Last Messages --------------- 07174_ Destroyed Carbon-fiber Leg. 07174_ Destroyed Imp. Heat Sink. 07178_ The unstable cave ceiling collapses. 07178_ Dropped Hcp. Matter Pod. 07178_ Seismic Detector destroyed. 07178_ G-47 Trooper destroyed. 07179_ Extracted 200 matter. 07179_ The unstable cave ceiling collapses. 07180_ Acquired Hcp. Matter Pod. 07183_ The unstable cave ceiling collapses. 07183_ Acquired 26 matter. 07184_ The unstable cave ceiling collapses. 07184_ Acquired 22 matter. 07216_ EXIT=FOUND: STORAGE 07220_ Triggered Alarm Trap. 07220_ An alarm sounds. 07220_ ALERT: Alarm triggered, dispatching investigation squad. 07222_ K-01 Serf cleans the Material Processor. 07225_ K-01 Serf collects debris. 07226_ K-01 Serf cleans the Material Processor. Map ----- +----------------------------------------------------+ | | | | | | | | | | | | | | | | | | | | | | | | | ???????????????????????????????????????????? | | ??????#######??????????????????????????????? | | ??????# #??????????????????????????????? | | ??????# #???#######????????????????????? | | ??????# #??# #????????????????????? | | ??##### #### #????????????????????? | | ??# # # + #????????????????????? | | ??# # + # > #????????????????????? | | ??# + # / #????????????????????? | | ??# # # # #????????????????????? | | ??# ####### ###################?????????? | | ??# g ????????? | | ??# ????????? | | ??# @ ????????? | | ??# """ """ ????????? | | ??## """"" """"" ##########?????????? | | ???# """"" """"" #??????????????????? | | ???# """"" """""k +??????????????????? | | ???# """k """ k #??????????????????? | | ???# #??????????????????? | | ???# #??????????????????? | | ???# #??????????????????? | | ?### #??????????????????? | | ## ? ??????????????????? | | # [ ?????????????????????? | | = # #########??????????????????????? | | [ = #??????????????????????????????? | | #??????????????????????????????? | | #??????????????????????????????? | | #??????????????????????????????? | | # ######+#####??????????????????? | | # ???????????????????? | | ????????????????????? | | % // """"????????????????????? | | /= """" ""????????????????? | | """" """"??????????????? | | ????????????? | | # [ "T" ????????????? | +----------------------------------------------------+ Best States ------------- Heat Dissipation 50 Energy Generation 14 Energy Capacity 280 Matter Stores 300 Matter Capacity 300 Sight Range 16 Terrain Scan Density 10 Armor Coverage 300 Evasion (%) 55 Core Analysis 6 Recoil Reduction 4 Offensive Hacking 20 Item Schematics ----------------- Hrd. Light Armor Plating | -8/Materials | Scanalyzed Imp. Utility Shielding | -8/Materials | Hacked Robot Schematics ------------------ None Fabricated ------------ Nothing Alien Tech Used ----------------- None Achievements -------------- None Challenges ------------ None Game ------ Seed VortexGuidedBay Manual? 0 Play Time 00:34:25 Cumulative 703.0 hours Start 2023.07.30 @ 04:00:07 End 2023.07.30 @ 04:33:58 Sessions 1 Manual Loads 0 Difficulty Rogue Special Mode None Game No. 644 Rogue 644 Adventurer 0 Explorer 0 Win Type - Total 34 Types 14/2/10/2/0/0/4/1/1 Lore% 97 Gallery% 96 Achievement% 83 Wizard Run 0 Options --------- ASCII 0 Keyboard 0 Movement Numpad Keybinds 0 Fullscreen 1 Font 18/Smallcaps Map View 76x50 Tactical HUD 1 Map Filters NONE Filters NONE Steam 1 RUN: dab83e0c-cd03-43c3-bd2b-1c1300e1288b